fUST/lending_fUST_20240801
["ID","MTS","AMOUNT","RATE_DAILY","PERIOD"]
[333789816,1722504638196,-151.0,0.00013698,2]
[333789818,1722504638206,-500.0,0.00013698,2]
[333789820,1722504638222,-500.0,0.00013698,2]
[333789821,1722504638232,-825.11,0.00013698,2]
[333789823,1722504638242,-2507.55,0.00013698,2]
[333789824,1722504638253,-151.0,0.00013698,2]
[333789825,1722504638263,-260.8,0.00013698,2]
[333789827,1722504638272,-151.235269,0.00013698,2]
[333789829,1722504638282,-553.82563815,0.00013698,2]
[333789831,1722504638291,-151.0,0.00013698,2]
[333789832,1722504638301,-151.0,0.00013698,2]
[333789833,1722504638311,-500.0,0.00013698,2]
[333789834,1722504638320,-677.76,0.00013698,2]
[333789835,1722504638330,-151.0,0.00013698,2]
[333789836,1722504638451,-501.67,0.00013698,2]
[333789837,1722504638462,-151.0,0.00013698,2]
[333789838,1722504638472,-577.88,0.00013698,2]
[333789839,1722504638481,-151.0,0.00013698,2]
[333789840,1722504638491,-152.101764,0.00013698,2]
[333789841,1722504638501,-500.0,0.00013698,2]
[333789842,1722504638511,-500.0,0.00013698,2]
[333789843,1722504638521,-151.0,0.00013698,2]
[333789844,1722504638531,-500.0,0.00013698,2]
[333789845,1722504638541,-500.0,0.00013698,2]
[333789846,1722504638550,-506.43917156,0.00013698,2]
[333789847,1722504638560,-500.0,0.00013698,2]
[333789848,1722504638570,-772.81,0.00013698,2]
[333789849,1722504638579,-500.0,0.00013698,2]
[333789850,1722504638589,-500.0,0.00013698,2]
[333789851,1722504638598,-500.0,0.00013698,2]
[333789852,1722504638608,-500.0,0.00013698,2]
[333789853,1722504638618,-813.5,0.00013698,2]
[333789854,1722504638628,-500.0,0.00013698,2]
[333789855,1722504638637,-512.84981989,0.00013698,2]
[333789856,1722504638649,-500.0,0.00013698,2]
[333789857,1722504638659,-500.0,0.00013698,2]
[333789858,1722504638668,-159.832266,0.00013698,2]
[333789859,1722504638678,-159.832266,0.00013698,2]
[333789860,1722504638688,-500.0,0.00013698,2]
[333789861,1722504638698,-500.0,0.00013698,2]
[333789862,1722504638707,-159.832266,0.00013698,2]
[333789863,1722504638716,-159.832266,0.00013698,2]
[333789864,1722504638727,-177.75794468,0.00013698,2]
[333789865,1722504638736,-500.0,0.00013698,2]
[333789866,1722504638746,-500.0,0.00013698,2]
[333789867,1722504638756,-577.09,0.00013698,2]
[333789868,1722504638766,-610.85,0.00013698,2]
[333789869,1722504638776,-500.0,0.00013698,2]
[333789870,1722504638786,-151.0,0.00013698,2]
[333789871,1722504638796,-151.0,0.00013698,2]
[333789872,1722504638806,-1169.96,0.00013698,2]
[333789873,1722504638816,-500.0,0.00013698,2]
[333789874,1722504638826,-500.0,0.00013698,2]
[333789875,1722504638836,-500.0,0.00013698,2]
[333789876,1722504638846,-506.29276197,0.00013698,2]
[333789877,1722504638855,-152.246061,0.00013698,2]
[333789878,1722504638865,-622.19503766,0.00013698,2]
[333789879,1722504638875,-500.0,0.00013698,2]
[333789880,1722504638884,-500.0,0.00013698,2]
[333789881,1722504638895,-500.0,0.00013698,2]
[333789882,1722504638905,-507.29826954,0.00013698,2]
[333789883,1722504638915,-210.58092546,0.00013698,2]
[333789884,1722504638925,-1190.69,0.00013698,2]
[333789885,1722504638935,-500.0,0.00013698,2]
[333789886,1722504638945,-500.0,0.00013698,2]
[333789887,1722504638955,-151.0,0.00013698,2]
[333789888,1722504638967,-151.821504,0.00013698,2]
[333789889,1722504638977,-500.0,0.00013698,2]
[333789890,1722504638989,-500.0,0.00013698,2]
[333789891,1722504638999,-503.48874314,0.00013698,2]
[333789892,1722504639009,-236.88596401,0.00013698,2]
[333789893,1722504639018,-500.0,0.00013698,2]
[333789894,1722504639028,-500.0,0.00013698,2]
[333789895,1722504639037,-500.0,0.00013698,2]
[333789896,1722504639046,-198.928406,0.00013698,2]
[333789897,1722504639055,-198.928406,0.00013698,2]
[333789898,1722504639065,-198.928406,0.00013698,2]
[333789899,1722504639075,-198.928406,0.00013698,2]
[333789900,1722504639086,-151.0,0.00013698,2]
[333789901,1722504639097,-151.0,0.00013698,2]
[333789902,1722504639106,-151.0,0.00013698,2]
[333789903,1722504639117,-151.0,0.00013698,2]
[333789904,1722504639127,-151.0,0.00013698,2]
[333789905,1722504639137,-151.0,0.00013698,2]
[333789906,1722504639148,-500.0,0.00013698,2]
[333789907,1722504639158,-500.0,0.00013698,2]
[333789908,1722504639168,-500.0,0.00013698,2]
[333789909,1722504639177,-500.0,0.00013698,2]
[333789910,1722504639187,-500.0,0.00013698,2]
[333789911,1722504639197,-500.0,0.00013698,2]
[333789912,1722504639207,-500.0,0.00013698,2]
[333789913,1722504639220,-500.0,0.00013698,2]
[333789914,1722504639229,-151.0,0.00013698,2]
[333789915,1722504639240,-151.0,0.00013698,2]
[333789916,1722504639249,-151.0,0.00013698,2]
[333789917,1722504639260,-151.0,0.00013698,2]
[333789918,1722504639269,-151.0,0.00013698,2]
[333789919,1722504639279,-151.0,0.00013698,2]
[333789920,1722504639290,-151.0,0.00013698,2]
[333789921,1722504639299,-500.0,0.00013698,2]
[333789922,1722504639309,-151.0,0.00013698,2]
[333789923,1722504639319,-151.0,0.00013698,2]
[333789924,1722504639329,-151.0,0.00013698,2]
[333789925,1722504639338,-500.0,0.00013698,2]
[333789926,1722504639348,-2670.22,0.00013698,2]
[333789927,1722504639358,-287.369728,0.00013698,2]
[333789928,1722504639367,-287.369728,0.00013698,2]
[333789929,1722504639377,-287.369728,0.00013698,2]
[333789930,1722504639387,-500.0,0.00013698,2]
[333789931,1722504639397,-3959.26,0.00013698,2]
[333789932,1722504639407,-287.369728,0.00013698,2]
[333789933,1722504639416,-287.369728,0.00013698,2]
[333789934,1722504639425,-287.369728,0.00013698,2]
[333789935,1722504639434,-500.0,0.00013698,2]
[333789936,1722504639445,-537.114266,0.00013698,2]
[333789937,1722504639455,-537.114266,0.00013698,2]
[333789938,1722504639466,-537.114266,0.00013698,2]
[333789939,1722504639475,-500.0,0.00013698,2]
[333789940,1722504639485,-1264.06,0.00013698,2]
[333789941,1722504639495,-537.114266,0.00013698,2]
[333789942,1722504639505,-537.114266,0.00013698,2]
[333789943,1722504639515,-537.114266,0.00013698,2]
[333789944,1722504639525,-653.43,0.00013698,2]
[333789945,1722504639535,-500.0,0.00013698,2]
[333789946,1722504639545,-827.11,0.00013698,2]
[333789947,1722504639555,-500.0,0.00013698,2]
[333789948,1722504639566,-798.82,0.00013698,2]
[333789949,1722504639576,-290.87315042,0.00013698,2]
[333789950,1722504639586,-4702.27,0.00013698,2]
[333789951,1722504639596,-5341.04,0.00013698,2]
[333789952,1722504639606,-506.33901798,0.00013698,2]
[333789953,1722504639616,-500.0,0.00013698,2]
[333789955,1722504639625,-500.0,0.00013698,2]
[333789957,1722504639635,-502.88311085,0.00013698,2]
[333789959,1722504639645,-688.26,0.00013698,2]
[333789960,1722504639654,-500.0,0.00013698,2]
[333789962,1722504639663,-151.0,0.00013698,2]
[333789964,1722504639673,-974.93,0.00013698,2]
[333789965,1722504639683,-151.0,0.00013698,2]
[333789966,1722504639692,-151.0,0.00013698,2]
[333789967,1722504639702,-500.0,0.00013698,2]
[333789968,1722504639711,-520.69,0.00013698,2]
[333789969,1722504639720,-596.63,0.00013698,2]
[333789970,1722504639730,-222.841138,0.00013698,2]
[333789971,1722504639740,-500.0,0.00013698,2]
[333789972,1722504639750,-222.841138,0.00013698,2]
[333789974,1722504639760,-222.841138,0.00013698,2]
[333789975,1722504639769,-222.841138,0.00013698,2]
[333789977,1722504639779,-222.841138,0.00013698,2]
[333789979,1722504639788,-222.841138,0.00013698,2]
[333789980,1722504639797,-500.0,0.00013698,2]
[333789981,1722504639807,-1625.62,0.00013698,2]
[333789982,1722504639816,-500.0,0.00013698,2]
[333789983,1722504639825,-500.0,0.00013698,2]
[333789984,1722504639834,-500.0,0.00013698,2]
[333789985,1722504639845,-500.0,0.00013698,2]
[333789986,1722504639855,-500.0,0.00013698,2]
[333789988,1722504639864,-500.0,0.00013698,2]
[333789989,1722504639873,-500.0,0.00013698,2]
[333789990,1722504639883,-500.0,0.00013698,2]
[333789991,1722504639892,-500.0,0.00013698,2]
[333789992,1722504639903,-500.0,0.00013698,2]
[333789993,1722504639914,-868.75,0.00013698,2]
[333789994,1722504639923,-1287.0,0.00013698,2]
[333789995,1722504639932,-1625.36,0.00013698,2]
[333789996,1722504639941,-322.882112,0.00013698,2]
[333789997,1722504639950,-322.882112,0.00013698,2]
[333789998,1722504639960,-202.56169854,0.00013698,2]
[333789999,1722504639969,-322.882112,0.00013698,2]
[333790000,1722504639979,-322.882112,0.00013698,2]
[333790001,1722504639988,-322.882112,0.00013698,2]
[333790002,1722504639998,-322.882112,0.00013698,2]
[333790003,1722504640008,-732.88,0.00013698,2]
[333790004,1722504640018,-151.0,0.00013698,2]
[333790005,1722504640028,-4361.26,0.00013698,2]
[333790006,1722504640037,-151.0,0.00013698,2]
[333790007,1722504640047,-151.0,0.00013698,2]
[333790008,1722504640056,-500.0,0.00013698,2]
[333790009,1722504640066,-745.35,0.00013698,2]
[333790010,1722504640076,-151.0,0.00013698,2]
[333790011,1722504640085,-151.0,0.00013698,2]
[333790012,1722504640095,-151.0,0.00013698,2]
[333790013,1722504640104,-574.73,0.00013698,2]
[333790014,1722504640114,-500.0,0.00013698,2]
[333790015,1722504640123,-1112.32,0.00013698,2]
[333790016,1722504640134,-500.0,0.00013698,2]
[333790017,1722504640146,-1659.24,0.00013698,2]
[333790018,1722504640156,-1343.57,0.00013698,2]
[333790019,1722504640165,-500.0,0.00013698,2]
[333790020,1722504640174,-500.0,0.00013698,2]
[333790021,1722504640184,-500.0,0.00013698,2]
[333790022,1722504640193,-500.0,0.00013698,2]
[333790023,1722504640202,-500.0,0.00013698,2]
[333790024,1722504640214,-3077.51,0.00013698,2]
[333790025,1722504640225,-882.01,0.00013698,2]
[333790026,1722504640235,-500.0,0.00013698,2]
[333790027,1722504640245,-500.0,0.00013698,2]
[333790028,1722504640255,-500.0,0.00013698,2]
[333790029,1722504640264,-500.0,0.00013698,2]
[333790030,1722504640273,-504.61701673,0.00013698,2]
[333790031,1722504640283,-697.67,0.00013698,2]
[333790032,1722504640294,-500.0,0.00013698,2]
[333790033,1722504640303,-1049.01,0.00013698,2]
[333790034,1722504640313,-500.0,0.00013698,2]
[333790035,1722504640323,-438.655399,0.00013698,2]
[333790036,1722504640332,-438.655399,0.00013698,2]
[333790037,1722504640342,-583.07,0.00013698,2]
[333790038,1722504640351,-438.655399,0.00013698,2]
[333790039,1722504640361,-500.0,0.00013698,2]
[333790040,1722504640370,-788.58,0.00013698,2]
[333790041,1722504640379,-514.21,0.00013698,2]
[333790042,1722504640389,-438.655399,0.00013698,2]
[333790043,1722504640400,-438.655399,0.00013698,2]
[333790044,1722504640410,-438.655399,0.00013698,2]
[333790045,1722504640420,-500.0,0.00013698,2]
[333790046,1722504640430,-151.0,0.00013698,2]
[333790047,1722504640439,-151.0,0.00013698,2]
[333790048,1722504640449,-500.0,0.00013698,2]
[333790049,1722504640459,-151.0,0.00013698,2]
[333790050,1722504640469,-151.0,0.00013698,2]
[333790051,1722504640478,-1138.16,0.00013698,2]
[333790052,1722504640488,-794.31,0.00013698,2]
[333790053,1722504640497,-584.92,0.00013698,2]
[333790054,1722504640507,-1241.88,0.00013698,2]
[333790055,1722504640517,-612.90227652,0.00013698,2]
[333790056,1722504640526,-814.403794,0.00013698,2]
[333790057,1722504640536,-814.403794,0.00013698,2]
[333790058,1722504640546,-814.403794,0.00013698,2]
[333790059,1722504640556,-500.0,0.00013698,2]
[333790060,1722504640565,-814.403794,0.00013698,2]
[333790061,1722504640576,-500.0,0.00013698,2]
[333790062,1722504640586,-814.403794,0.00013698,2]
[333790063,1722504640598,-814.403794,0.00013698,2]
[333790064,1722504640607,-820.18,0.00013698,2]
[333790065,1722504640617,-2260.78,0.00013698,2]
[333790066,1722504640627,-500.0,0.00013698,2]
[333790067,1722504640638,-500.0,0.00013698,2]
[333790068,1722504640648,-593.76,0.00013698,2]
[333790069,1722504640657,-501.7600935,0.00013698,2]
[333790070,1722504640668,-588.78,0.00013698,2]
[333790071,1722504640678,-151.0,0.00013698,2]
[333790072,1722504640689,-152.237788,0.00013698,2]
[333790073,1722504640699,-1110.56,0.00013698,2]
[333790074,1722504640710,-2046.54,0.00013698,2]
[333790075,1722504640722,-2046.54,0.00013698,2]
[333790076,1722504640733,-2046.54,0.00013698,2]
[333790077,1722504640742,-618.75,0.00013698,2]
[333790078,1722504640754,-2046.54,0.00013698,2]
[333790079,1722504640763,-568.757247,0.00013698,2]
[333790080,1722504640773,-2046.54,0.00013698,2]
[333790081,1722504640784,-2046.54,0.00013698,2]
[333790082,1722504640794,-568.757247,0.00013698,2]
[333790083,1722504640804,-568.757247,0.00013698,2]
[333790084,1722504640815,-500.0,0.00013698,2]
[333790085,1722504640824,-967.16,0.00013698,2]
[333790086,1722504640834,-2938.52,0.00013698,2]
[333790087,1722504640845,-247.910206,0.00013699,2]
[333790088,1722504640855,-240.39431555,0.00013699,2]
[333790089,1722504640864,-150.112233,0.000137,2]
[333790090,1722504640873,-47568.2740543,0.00013732,2]
[333790091,1722504640882,-814.403794,0.00013732,2]
[333790092,1722504640893,-814.403794,0.00013732,2]
[333790093,1722504640902,-568.757247,0.00013732,2]
[333790094,1722504640911,-2000.0,0.00013732,2]
[333790095,1722504640921,-155.0,0.0001374,2]
[333790096,1722504640930,-312.89728773,0.0001374,2]
[333790097,1722504640941,-500.0,0.0001374,2]
[333790098,1722504640951,-500.0,0.0001374,2]
[333790099,1722504640962,-500.0,0.0001374,2]
[333790100,1722504640972,-500.0,0.0001374,2]
[333790101,1722504640982,-518.24577644,0.0001374,2]
[333790102,1722504640992,-500.0,0.0001374,2]
[333790103,1722504641003,-500.0,0.0001374,2]
[333790104,1722504641012,-500.0,0.0001374,2]
[333790105,1722504641021,-500.0,0.0001374,2]
[333790106,1722504641031,-2046.54,0.00013741,2]
[333790107,1722504641125,-151.0,0.00013742,2]
[333790108,1722504641148,-154.2357,0.00013742,2]
[333790109,1722504641158,-2507.55,0.00013742,2]
[333790110,1722504641169,-151.0,0.00013742,2]
[333790111,1722504641180,-151.0,0.00013742,2]
[333790112,1722504641191,-151.0,0.00013742,2]
[333790113,1722504641202,-151.0,0.00013742,2]
[333790114,1722504641216,-151.0,0.00013742,2]
[333790115,1722504641228,-159.832266,0.00013742,2]
[333790116,1722504641239,-159.832266,0.00013742,2]
[333790117,1722504641248,-190.890601,0.00013742,2]
[333790118,1722504641259,-198.928406,0.00013742,2]
[333790119,1722504641269,-198.928406,0.00013742,2]
[333790120,1722504641280,-151.0,0.00013742,2]
[333790121,1722504641291,-151.0,0.00013742,2]
[333790122,1722504641301,-151.0,0.00013742,2]
[333790123,1722504641310,-151.0,0.00013742,2]
[333790124,1722504641320,-287.369728,0.00013742,2]
[333790125,1722504641329,-287.369728,0.00013742,2]
[333790126,1722504641339,-537.114266,0.00013742,2]
[333790127,1722504641348,-537.114266,0.00013742,2]
[333790128,1722504641358,-151.0,0.00013742,2]
[333790129,1722504641367,-222.841138,0.00013742,2]
[333790130,1722504641377,-222.841138,0.00013742,2]
[333790131,1722504641386,-322.882112,0.00013742,2]
[333790132,1722504641397,-322.882112,0.00013742,2]
[333790133,1722504641406,-151.0,0.00013742,2]
[333790134,1722504641415,-151.0,0.00013742,2]
[333790135,1722504641426,-438.655399,0.00013742,2]
[333790136,1722504641436,-438.655399,0.00013742,2]
[333790137,1722504641446,-814.403794,0.00013742,2]
[333790138,1722504641455,-814.403794,0.00013742,2]
[333790139,1722504641464,-568.757247,0.00013742,2]
[333790140,1722504641474,-11820.55468208,0.00013742,2]
[333790141,1722504641484,-151.0,0.00013752,2]
[333790142,1722504641494,-151.0,0.00013752,2]
[333790143,1722504641505,-151.0,0.00013752,2]
[333790144,1722504641515,-814.403794,0.00013752,2]
[333790145,1722504641525,-814.403794,0.00013752,2]
[333790146,1722504641534,-568.757247,0.00013752,2]
[333790147,1722504641544,-47568.2740543,0.00013752,2]
[333790148,1722504641554,-2046.54,0.00013761,2]
[333790149,1722504641564,-151.0,0.00013762,2]
[333790150,1722504641573,-151.0,0.00013762,2]
[333790151,1722504641582,-151.0,0.00013762,2]
[333790152,1722504641591,-151.0,0.00013762,2]
[333790153,1722504641601,-287.369728,0.00013762,2]
[333790154,1722504641611,-287.369728,0.00013762,2]
[333790155,1722504641631,-537.114266,0.00013762,2]
[333790156,1722504641643,-537.114266,0.00013762,2]
[333790157,1722504641656,-152.346379,0.00013762,2]
[333790158,1722504641666,-222.841138,0.00013762,2]
[333790159,1722504641676,-222.841138,0.00013762,2]
[333790160,1722504641687,-322.882112,0.00013762,2]
[333790161,1722504641697,-322.882112,0.00013762,2]
[333790162,1722504641708,-151.0,0.00013762,2]
[333790163,1722504641719,-257.960681,0.00013762,2]
[333790164,1722504641728,-438.655399,0.00013762,2]
[333790165,1722504641738,-438.655399,0.00013762,2]
[333790166,1722504641748,-814.403794,0.00013762,2]
[333790167,1722504641758,-814.403794,0.00013762,2]
[333790168,1722504641768,-568.757247,0.00013762,2]
[333790169,1722504641778,-28319.47724863,0.00013762,2]
[333790170,1722504641789,-1978.42830481,0.00013771,2]
[333790171,1722504641813,-177.04683188,0.00013771,2]
[333790172,1722504641826,-150.112233,0.000138,2]
[333790173,1722504641835,-153.0,0.000138,2]
[333790174,1722504641846,-153.0,0.000138,2]
[333790175,1722504641858,-153.0,0.000138,2]
[333790176,1722504641869,-153.0,0.000138,2]
[333790177,1722504641879,-109.99214794,0.000138,2]
[333790178,1722504642062,-568.757247,0.00013698,2]
[333790179,1722504642074,-568.757247,0.00013698,2]
[333790180,1722504642084,-43.00785206,0.000138,2]
[333790181,1722504642095,-153.0,0.000138,2]
[333790182,1722504642107,-153.0,0.000138,2]
[333790183,1722504642117,-173.228744,0.000138,2]
[333790184,1722504642127,-153.0,0.000138,2]
[333790185,1722504642137,-2046.54,0.00013821,2]
[333790186,1722504642148,-10030.36199683,0.00013822,5]
[333790187,1722504642158,-198.928406,0.00013822,2]
[333790188,1722504642168,-198.928406,0.00013822,2]
[333790189,1722504642178,-151.0,0.00013822,2]
[333790190,1722504642189,-298.588884,0.00013822,2]
[333790191,1722504642200,-151.0,0.00013822,2]
[333790192,1722504642211,-151.0,0.00013822,2]
[333790193,1722504642227,-287.369728,0.00013822,2]
[333790194,1722504642237,-287.369728,0.00013822,2]
[333790195,1722504642247,-537.114266,0.00013822,2]
[333790196,1722504642256,-537.114266,0.00013822,2]
[333790197,1722504642268,-222.841138,0.00013822,2]
[333790198,1722504642280,-222.841138,0.00013822,2]
[333790199,1722504642291,-322.882112,0.00013822,2]
[333790200,1722504642306,-322.882112,0.00013822,2]
[333790201,1722504642317,-151.0,0.00013822,2]
[333790202,1722504642326,-438.655399,0.00013822,2]
[333790203,1722504642337,-438.655399,0.00013822,2]
[333790204,1722504642347,-814.403794,0.00013822,2]
[333790205,1722504642356,-814.403794,0.00013822,2]
[333790206,1722504642366,-568.757247,0.00013822,2]
[333790207,1722504642375,-47568.2740543,0.00013822,2]
[333790208,1722504642385,-5215.79,0.00013831,2]
[333790209,1722504642396,-5215.79,0.00013831,2]
[333790210,1722504642405,-500.0,0.00013831,2]
[333790211,1722504642415,-500.82514499,0.00013831,2]
[333790212,1722504642425,-2046.54,0.00013831,2]
[333790213,1722504642435,-151.0,0.00013832,2]
[333790214,1722504642444,-2507.55,0.00013832,2]
[333790215,1722504642454,-270.542061,0.00013832,2]
[333790216,1722504642467,-151.0,0.00013832,2]
[333790217,1722504642477,-151.0,0.00013832,2]
[333790218,1722504642486,-151.0,0.00013832,2]
[333790221,1722504642496,-151.0,0.00013832,2]
[333790223,1722504642505,-159.832266,0.00013832,2]
[333790224,1722504642514,-159.832266,0.00013832,2]
[333790225,1722504642523,-151.0,0.00013841,2]
[333790226,1722504642532,-151.0,0.00013841,2]
[333790227,1722504642541,-151.0,0.00013841,2]
[333790228,1722504642551,-287.369728,0.00013841,2]
[333790229,1722504642560,-287.369728,0.00013841,2]
[333790230,1722504642570,-537.114266,0.00013841,2]
[333790232,1722504642579,-537.114266,0.00013841,2]
[333790234,1722504642588,-2046.54,0.0001385,2]
[333790236,1722504642598,-198.928406,0.00013851,2]
[333790237,1722504642607,-198.928406,0.00013851,2]
[333790238,1722504642616,-198.928406,0.00013851,2]
[333790239,1722504642626,-198.928406,0.00013851,2]
[333790240,1722504642635,-151.0,0.00013851,2]
[333790241,1722504642646,-151.0,0.00013851,2]
[333790242,1722504642656,-151.0,0.00013851,2]
[333790243,1722504642665,-287.369728,0.00013851,2]
[333790244,1722504642674,-287.369728,0.00013851,2]
[333790246,1722504642684,-5215.79,0.00013851,2]
[333790247,1722504642693,-537.114266,0.00013851,2]
[333790248,1722504642702,-537.114266,0.00013851,2]
[333790249,1722504642711,-222.841138,0.00013851,2]
[333790250,1722504642721,-222.841138,0.00013851,2]
[333790251,1722504642731,-222.841138,0.00013851,2]
[333790252,1722504642741,-222.841138,0.00013851,2]
[333790253,1722504642751,-322.882112,0.00013851,2]
[333790255,1722504642760,-322.882112,0.00013851,2]
[333790257,1722504642770,-322.882112,0.00013851,2]
[333790259,1722504642780,-322.882112,0.00013851,2]
[333790261,1722504642789,-151.0,0.00013851,2]
[333790262,1722504642799,-151.0,0.00013851,2]
[333790263,1722504642808,-438.655399,0.00013851,2]
[333790264,1722504642817,-438.655399,0.00013851,2]
[333790265,1722504642826,-438.655399,0.00013851,2]
[333790266,1722504642835,-438.655399,0.00013851,2]
[333790267,1722504642845,-814.403794,0.00013851,2]
[333790269,1722504642854,-814.403794,0.00013851,2]
[333790270,1722504642864,-814.403794,0.00013851,2]
[333790271,1722504642873,-814.403802,0.00013851,2]
[333790272,1722504642885,-568.757247,0.00013851,2]
[333790273,1722504642896,-568.757247,0.00013851,2]
[333790274,1722504642907,-11953.01918209,0.00013851,2]
[333790285,1722504646114,-568.757247,0.00013698,2]
[333790287,1722504646124,-500.0,0.00013698,2]
[333790290,1722504646134,-790.73,0.00013698,2]
[333790291,1722504646145,-568.757247,0.00013732,2]
[333790292,1722504646157,-568.757247,0.00013742,2]
[333790293,1722504646167,-568.757247,0.00013752,2]
[333790294,1722504646177,-568.757247,0.00013762,2]
[333790295,1722504646189,-568.757247,0.00013822,2]
[333790296,1722504646200,-568.757247,0.00013851,2]
[333790297,1722504646210,-568.757244,0.00013851,2]
[333790298,1722504646224,-4056.67591578,0.00013851,2]
[333790299,1722504668055,2768.999999,0.00025,120]
[333790302,1722505013462,1241.13,0.00010021,2]
[333790303,1722505063354,155.19349633,9.999e-05,2]
[333790304,1722505319617,434.6287768,9.999e-05,2]
[333790305,1722505329380,426.79757153,9.999e-05,2]
[333790306,1722505404216,408.59,0.00027,120]
[333790307,1722505408880,426.79757153,9.999e-05,2]
[333790308,1722505497380,165.66481459,9.999e-05,2]
[333790309,1722505530731,154.7827131,9.999e-05,2]
[333790310,1722505535546,154.7853179,9.999e-05,2]
[333790311,1722505682309,154.75149571,9.999e-05,2]
[333790314,1722505787031,305.89449293,0.00027,120]
[333790374,1722505832052,-186.6886205,0.00012335,2]
[333790376,1722505832063,-164.079985,0.00012986,2]
[333790378,1722505832073,-1101.97391522,0.000135,2]
[333790380,1722505832087,-797.21110479,0.000135,2]
[333790382,1722505832098,-301.80664102,0.00013535,2]
[333790385,1722505832112,-2407.12880654,0.00013535,2]
[333790387,1722505832124,-793.38844373,0.00013535,2]
[333790389,1722505832135,-295.16524135,0.00013535,2]
[333790391,1722505832146,-168.05719132,0.0001357,2]
[333790392,1722505832155,-168.05719131,0.00013584,2]
[333790394,1722505832180,-300.0,0.00013587,2]
[333790396,1722505832189,-587.20210539,0.00013588,2]
[333790439,1722505840285,-7694.68890235,0.00013588,2]
[333790440,1722505840297,-3182.58600186,0.00013588,2]
[333790441,1722505840311,-356.07767248,0.00013588,2]
[333790442,1722505840322,-168.05719131,0.00013597,2]
[333790443,1722505840332,-946.98839698,0.00013598,2]
[333790444,1722505840352,-27372.48885165,0.00013598,2]
[333790445,1722505840362,-153.0,0.000136,2]
[333790446,1722505840372,-153.0,0.000136,2]
[333790447,1722505840382,-4377.04,0.0001366,2]
[333790448,1722505840391,-4377.04,0.0001367,2]
[333790449,1722505840400,-4377.04,0.0001367,2]
[333790450,1722505840411,-4377.04,0.00013686,2]
[333790451,1722505840420,-4377.04,0.00013687,2]
[333790452,1722505840430,-4377.04,0.00013687,2]
[333790453,1722505840439,-4377.04,0.00013687,2]
[333790454,1722505840449,-60437.23890062,0.00013688,2]
[333790455,1722505840467,-657.14970041,0.00013688,2]
[333790497,1722505843029,-367.7699373,0.0001353,2]
[333790498,1722505843046,-4927.5900627,0.00013688,2]
[333790499,1722505843144,-791.2784889,0.00013688,2]
[333790500,1722505843158,-1746.5,0.00013688,2]
[333790545,1722506969136,-459.55767833,0.00012119,2]
[333790630,1722507038336,-188.445714,0.00012464,2]
[333790632,1722507038347,-188.445714,0.00012681,2]
[333790635,1722507038359,-188.445714,0.00012897,2]
[333790636,1722507038368,-166.743266,0.00012986,2]
[333790639,1722507038378,-188.445714,0.00013114,2]
[333790641,1722507038389,-153.0,0.000132,2]
[333790643,1722507038400,-153.0,0.000132,2]
[333790644,1722507038410,-367.7699373,0.00013298,2]
[333790646,1722507038419,-3797.48913264,0.00013318,2]
[333790648,1722507038429,-306.0,0.000134,2]
[333790650,1722507038438,-153.0,0.000134,2]